Cogmind - Beta 15 @@@ ROGUE MODE // 2025.08.07 @ 00:55:56 Player: OoferDoofums Result: Destroyed by U5-FUF(R) with Subdweller Laser Performance ------------- Evolutions (0) 0 Regions Visited (2) 400 Robots Destroyed (12) 60 Value Destroyed (141) 141 Prototype IDs (0) 0 Alien Tech Used (0) 0 Bonus (0) 0 TOTAL SCORE: 601 Bonus ------- None Cogmind --------- Core Integrity 0/250 Matter 389/400 Energy 99/100 System Corruption 0% Temperature Cool (6) Movement Core (150) Ox2 Location -10/Subcaves Parts ------- > --- POWER (1) -------- (None) > --- PROPULSION (2) --- (None) > --- UTILITY (2) ------ Small Storage Unit Medium Matter Pod > --- WEAPON (2) ------- Medium Laser > --- INVENTORY (8) ---- Light Ion Engine Light Treads Aluminum Leg Peak State ------------ > --- POWER ------------ Light Ion Engine > --- PROPULSION ------- Light Treads Aluminum Leg > --- UTILITY ---------- Small Storage Unit Tractor Beam > --- WEAPON ----------- Assault Rifle Light Assault Rifle > --- INVENTORY -------- Ion Engine Light Treads Aluminum Leg Medium Laser [Rating: 7] Favorites ----------- Power Light Ion Engine Engine Light Ion Engine Propulsion Light Treads Treads Light Treads Leg Aluminum Leg Utility Small Storage Unit Device Tractor Beam Storage Small Storage Unit Weapon Light Assault Rifle Energy Gun Medium Laser Ballistic Gun Light Assault Rifle Build | -11 -10 -10 ------- Run | Yrd Mat Sub Slots Evolved . | . . . Power . | . . . Propulsion . | . . . Utility . | . . . Weapon . | . . . Parts Attached 12 | 8 . 4 Power 2 | 1 . 1 Engine 2 | 1 . 1 Core . | . . . Reactor . | . . . Propulsion 3 | 2 . 1 Treads 2 | 1 . 1 Leg 1 | 1 . . Wheel . | . . . Hover . | . . . Flight . | . . . Utility 3 | 2 . 1 Device 1 | 1 . . Storage 2 | 1 . 1 Processor . | . . . Hackware . | . . . Protection . | . . . Artifact . | . . . Weapon 4 | 3 . 1 Energy Gun 1 | 1 . . Energy Cannon . | . . . Ballistic Gun 3 | 2 . 1 Ballistic Cannon . | . . . Launcher . | . . . Special Weapon . | . . . Impact Weapon . | . . . Slashing Weapon . | . . . Piercing Weapon . | . . . Special Melee Weapon . | . . . Unidentified Prototypes . | . . . Parts Lost 8 | . . 8 Power 2 | . . 2 Propulsion 2 | . . 2 Utility 1 | . . 1 Weapon 3 | . . 3 Highest Loss Streak 5 | . . 5 To Critical Strikes . | . . . Average Backups 3 | 2 5 3 Power . | . 1 . Propulsion 1 | 1 2 2 Utility . | . 1 . Weapon . | . 1 . Tool/Special . | . . . Unused Backups 2 | . . 2 Power 1 | . . 1 Propulsion 1 | . . 1 Utility . | . . . Weapon . | . . . Tool/Special . | . . . Average Slot Usage (%) 88 | . 100 80 Engine 11 | . 14 9 Treads 12 | . 14 11 Leg 10 | . 14 7 Device 9 | . 14 5 Storage 18 | . 14 21 Energy Gun 4 | . . 7 Ballistic Gun 20 | . 28 15 Peak Build Rating 7 | 7 7 7 Average Rating 5 | 5 7 5 On Entrance 4 | . 7 7 Naked Turns . | . . . Heaviest Build 15 | 12 12 15 Greatest Support 20 | 20 20 20 Greatest Overweight (x) 4 | 3 . 4 Average Overweight (x) . | . . . Largest Inventory Capacity 8 | 8 8 8 Average Capacity 7 | 7 8 8 Most Carried 5 | 5 5 5 Average Carried 3 | 2 5 3 Final Capacity 8 | 8 8 8 Final Carried 5 | 5 5 3 Class Distribution -------------------- 100% | Mutant Dominant Class ---------------- Mutant | -10/Materials Mutant | -10/Subcaves Resources | -11 -10 -10 ----------- Run | Yrd Mat Sub Matter Collected 456 | 338 . 118 Remotely 175 | 121 . 54 Salvage Created 291 | 149 . 142 Parts 24 | 9 . 15 Haulers Intercepted . | . . . Recyclers Shooed . | . . . Parts Field Recycled . | . . . Retrieved Matter . | . . . Parts Self-Destructed 15 | . . 15 Prevented . | . . . Kills | -11 -10 -10 ------- Run | Yrd Mat Sub Combat Hostiles Destroyed 6 | . . 6 Guns 6 | . . 6 Classes Destroyed 5 | 3 . 2 Worker 1 | 1 . . Tunneler 2 | 2 . . Recycler 1 | 1 . . Turret 2 | . . 2 Swarmer 6 | . . 6 Best Kill Streak 3 | 3 . 3 Combat Bots Only 3 | . . 3 Max Kills in Single Turn 2 | 1 . 2 Gunslinging 1 | . . 1 Exploded . | . . . Melee . | . . . Uniques/NPCs Destroyed . | . . . Combat | -11 -10 -10 -------- Run | Yrd Mat Sub Hostile Shots Fired 227 | . . 227 Missed 96 | . . 96 Hits 131 | . . 131 Projectile 131 | . . 131 Damage Taken 1104 | . . 1104 Core 263 | . . 263 Absorbed by Shields . | . . . Core Remaining (%) 100 | 100 . . Volleys Fired 48 | 12 . 36 Largest 2 | 2 . 2 Hottest 80 | 40 . 80 Shots Fired 75 | 24 . 51 Gun 75 | 24 . 51 Cannon . | . . . Launcher . | . . . Special . | . . . Kinetic 47 | 24 . 23 Thermal 28 | . . 28 Explosive . | . . . Electromagnetic . | . . . Robot Hit Streak 8 | 8 . 8 Robot Miss Streak 3 | 3 . 1 Penetration Max . | . . . Secondary Targets 3 | . . 3 Max Gunslinging Chain 1 | . . 1 Shots Hit Robots 48 | 14 . 34 Core Hits 20 | 6 . 14 Critical Kills . | . . . Critical Parts Destroyed . | . . . Critical Strikes 1 | . . 1 Burn 1 | . . 1 Melee Attacks . | . . . Impact . | . . . Slashing . | . . . Piercing . | . . . Sneak Attacks . | . . . Combat Hostiles . | . . . Follow-up Attacks . | . . . Damage Inflicted 556 | 147 . 409 Guns 556 | 147 . 409 Cannons . | . . . Explosions . | . . . Melee . | . . . Ramming . | . . . Kinetic 358 | 147 . 211 Thermal 198 | . . 198 Explosive . | . . . Electromagnetic . | . . . Impact . | . . . Slashing . | . . . Piercing . | . . . Highest Corruption . | . . . Average Corruption . | . . . Corruption Purged . | . . . Corruption Blocked . | . . . Overload Shots . | . . . Overflow Damage . | . . . Projectiles . | . . . Explosions . | . . . Melee . | . . . Knockbacks . | . . . Impact . | . . . Kinetic . | . . . Secondary . | . . . Self-Inflicted Damage . | . . . Shots . | . . . Rammed . | . . . Targets Rammed . | . . . Kicked . | . . . Crushed . | . . . Highest Temperature 19 | . . 19 Average Temperature 10 | . . 10 Received Heat Transfer 492 | . . 492 Siege Activations . | . . . Martial Activations . | . . . Shielding Activations . | . . . Robots Disrupted . | . . . Combat Hostiles . | . . . Robots Corrupted . | . . . Combat Hostiles . | . . . Parts Fried . | . . . Impact Corruptions . | . . . Robots Melted . | . . . Combat Hostiles . | . . . Parts Melted . | . . . Heat Transferred 666 | . . 666 Parts Sabotaged . | . . . Parts Stolen . | . . . Parts Stripped . | . . . Power Chain Reactions . | . . . Alert | -11 -10 -10 ------- Run | Yrd Mat Sub Maximum Alert Level . | . . . Low Security (%) 100 | 100 100 . Level 1 . | . . . Level 2 . | . . . Level 3 . | . . . Level 4 . | . . . Level 5 . | . . . High Security . | . . . Max Security . | . . . Peak Influence 10 | 10 . . Initial . | . . . Average . | 1 . . Influence Increases 310 | 20 . 290 Destroy 0b10 Robot/C 160 | . . 160 Destroy 0b10 Robot/NC 20 | 20 . . Destroy Leader 10 | . . 10 Lose Combat Pursuer 120 | . . 120 Influence Decreases 200 | 20 . 180 Time Decay 120 | 20 . 100 Lost Part 80 | . . 80 Squads Dispatched 1 | . 1 . Investigation . | . . . Extermination . | . . . Reinforcement 1 | . 1 . Assault . | . . . Garrison . | . . . Intercept . | . . . Searches Triggered . | . . . Construction Impeded . | . . . Haulers Reinforced . | . . . Active Scanning Responses . | . . . Cargo Convoy Interrupts . | . . . Stealth | -11 -10 -10 --------- Run | Yrd Mat Sub Distress Signals . | . . . Communications Jammed . | . . . Distress Signals . | . . . Times Spotted 17 | . 1 16 Peak Tracking Total 7 | . . 7 Tactical Retreats 4 | . . 4 Traps | -11 -10 -10 ------- Run | Yrd Mat Sub Traps Triggered . | . . . Indirectly . | . . . Trap Hack Attempts . | . . . Triggered . | . . . Disarmed . | . . . Reprogrammed . | . . . Reused . | . . . Traps Extracted . | . . . Installed . | . . . Triggered . | . . . Machines | -11 -10 -10 ---------- Run | Yrd Mat Sub Machines Disabled 1 | . . 1 Max in Single Turn 1 | . . 1 Machines Repaired . | . . . Machines Dismantled . | . . . Machines Sabotaged . | . . . Overloaded Fab Kills . | . . . Hacking | -11 -10 -10 --------- Run | Yrd Mat Sub Machines Accessed . | . . . Terminals . | . . . Fabricators . | . . . Repair Stations . | . . . Recycling Units . | . . . Scanalyzers . | . . . Garrison Access . | . . . Total Hacks . | . . . Successful . | . . . Failed . | . . . Catastrophic . | . . . Database Lockouts . | . . . Manual . | . . . Terminals . | . . . Fabricators . | . . . Repair Stations . | . . . Recycling Units . | . . . Scanalyzers . | . . . Garrison Access . | . . . Terminal Hacks . | . . . Fabricator Hacks . | . . . Repair Station Hacks . | . . . Recycling Unit Hacks . | . . . Scanalyzer . | . . . Garrison Access Hacks . | . . . Unauthorized Hacks . | . . . Terminals . | . . . Fabricators . | . . . Repair Stations . | . . . Recycling Units . | . . . Scanalyzers . | . . . Garrison Access . | . . . Data Cores Recovered . | . . . Used . | . . . Hacking Detections . | . . . Full Trace Events . | . . . Feedback Events . | . . . Feedback Blocked . | . . . Robot Schematics Acquired . | . . . Robots Built . | . . . Authchips . | . . . Time . | . . . Total Robot Build Rating . | . . . Part Schematics Acquired . | . . . Parts Built . | . . . Authchips . | . . . Time . | . . . Total Part Build Rating . | . . . Parts Repaired . | . . . Time . | . . . Parts Recycled . | . . . Recycled Matter . | . . . Retrieved Matter . | . . . Retrieved Components . | . . . Parts Scanalyzed . | . . . Part Schematics Acquired . | . . . Parts Damaged . | . . . Bothacking | -11 -10 -10 ------------ Run | Yrd Mat Sub Used RIF Installer . | . . . Robots Hacked . | . . . Non-combat . | . . . Combat . | . . . Robot Hacks Applied . | . . . Relay Couplers Released . | . . . Fabnet Peak Effective % . | . . . Robots Rewired . | . . . Allies Hacked . | . . . Hacks Repelled . | . . . Allies | -11 -10 -10 -------- Run | Yrd Mat Sub Total Allies . | . . . Largest Group . | . . . Highest-Rated Group . | . . . Highest-Rated Ally . | . . . Total Orders . | . . . Ally Attacks . | . . . Total Damage . | . . . Kills . | . . . Allies Corrupted . | . . . Allies Melted . | . . . Intel | -11 -10 -10 ------- Run | Yrd Mat Sub Active Infowar (turns) . | . . . Robot Analysis Total . | . . . Derelict Logs Recovered . | . . . Drone Launches . | . . . Drone Recoveries . | . . . Exploration | -11 -10 -10 ------------- Run | Yrd Mat Sub Turns Passed 530 | 185 138 207 Spaces Moved 187 | 85 31 71 Core 39 | 24 . 15 Treads 147 | 60 31 56 Legs 1 | 1 . . Wheels . | . . . Hover . | . . . Flight . | . . . Fastest Speed 50 | 50 160 150 Average Speed 160 | 158 160 163 Slowest Speed 250 | 200 160 250 Overloaded Moves . | . . . Propulsion Burnouts . | . . . Robots Hopped . | . . . Potential Cave-ins . | . . . Cave-ins Triggered . | . . . Exploration Rate (%) 6 | 5 8 6 Regions Visited 2 Branch Regions 1 Pre-discovered Areas . | . . . Known Exits Taken . | . . . Unknown Exits Taken 2 | 1 1 . Scrap Searched . | . . . Spaces Dug . | . . . Terrain Destroyed . | . . . Melee . | . . . Projectile . | . . . AOE . | . . . Terrain Rammed . | . . . Walls Destroyed . | . . . Machines Disabled . | . . . Actions | -11 -10 -10 --------- Run | Yrd Mat Sub Total 343 | 110 120 113 Wait 90 | . 90 . Move 185 | 84 30 71 Hop . | . . . Pick Up 5 | 4 . 1 Fast Attach 8 | 7 . 1 Attach 4 | 1 . 3 Detach 1 | 1 . . Swap 2 | 1 . 1 Drop . | . . . Fire 48 | 12 . 36 Melee . | . . . Ram . | . . . Kick . | . . . Crush . | . . . Escape Stasis . | . . . Rewire . | . . . Trap . | . . . Miscellaneous . | . . . Route ------- -11/Scrapyard -10/Materials -10/Subcaves (discovered 1 exit: [*Rec]) History --------- Turn | Location | Event 13 | -11/Scrapyard | Discovered new exit (range 14) 186 | -11/Scrapyard | Entered Materials 289 | -10/Materials | Discovered new exit (range 5) 301 | -10/Materials | Build established: Mutant 324 | -10/Materials | Entered Subcaves 325 | -10/Subcaves | Approached by a straggling Scientist 389 | -10/Subcaves | Discovered new exit (range 10) 436 | -10/Subcaves | Core integrity fell below 50% 470 | -10/Subcaves | Lost 5 parts (1p1n1u2w) 495 | -10/Subcaves | Core integrity fell below 20% 531 | -10/Subcaves | Destroyed by U5-FUF(R) with Subdweller Laser Last Messages --------------- Acquired Lgt. Ion Engine. Acquired 20 matter. Aluminum Leg destroyed. Flight Unit fries itself beyond repair. Lgt. Assault Rifle destroyed. Acquired 31 matter. Subatomizers dissect the Wheel. Autobeam Turret suffers critical hit (Burn). Subatomizers dissect the Wheel. Autobeam Turret destroyed. Subatomizers dissect the Wheel. Ion Engine destroyed. Lgt. Treads destroyed. Acquired Sub. Machine Gun. Subatomizers dissect the Wheel. Destroyed Autobeam. Autobeam Turret destroyed. Machine disabled. Sub. Machine Gun destroyed. Subatomizers dissect the Wheel, destroying it. Map ----- +----------------------------------------------------+ | ?????????????????????????????# #????????? | | ?????????????????????????????#% #????????? | | ??????????????????????????????# #????????? | | ???????????????????????????????# #####????? | | ?????????????????????????????##??# #????? | | ????????????????????????????? ??## #????? | | ????????????????????????????? ???#### #????? | | ?????????????????????????????# #?????## #????? | | ????????????????????????????? #??????# ##????? | | ?????????????????????????##??# #??????# ##?????? | | ?????????????????????????# ### ??????# #??????? | | ?????????????????????????""" ?????## ##??????? | | ??????????????????????????"" ##???## ###???????? | | ???????????????????????""???# ##### #?????????? | | ????????????????????##"" ?### #?????????? | | ????????????????????#"" #"# #?????????? | | ???????????????????""" " #?????????? | | ????????????????????#"" ##?????????? | | ????????????????????##" ### # ##??????????? | | ??????????????????????????##### #???????????? | | ????????????????????????######## ##??????????? | | ????????????????????????#""" "# #??????????? | | ????????????????????????#" # #####??????????? | | ????????????????????????#" % # ##?????????????? | | ???????????????????????## R #######???????? | | ???????????????????????#<@ # # ##??????? | | ???????????????????????##"" = #??????? | | ????????????????????????#" % # &* #??????? | | ????????????????????????#" #### ##% #??????? | | ????????????????????????#""" "#??### #??????? | | ????????????????????????########??## ##??????? | | ??????????????????????????????????# ##???????? | | ??????????????????????????????????# ##????????? | | ??????????????????????????????????# #?????????? | | ?????????????????????????????????#""""" ?????????? | | ???????????????????????????????? """ #????????? | | ??????????????????????????????? """ #????????? | | ?????????????????????????????? ""##????????? | | ??????????????????????????????""" ####?????????? | | ????????????????????????????????"###?????????????? | | ?????????????????????????????????????????????????? | | ?????????????????????????????????????????????????? | | ?????????????????????????????????????????????????? | | ?????????????????????????????????????????????????? | | ?????????????????????????????????????????????????? | | ?????????????????????????????????????????????????? | | ?????????????????????????????????????????????????? | | ?????????????????????????????????????????????????? | | ?????????????????????????????????????????????????? | | ?????????????????????????????????????????????????? | +----------------------------------------------------+ Best States ------------- Heat Dissipation 25 Energy Generation 10 Energy Capacity 250 Matter Stores 400 Matter Capacity 400 Sight Range 16 Terrain Scan Density 10 Evasion (%) 40 Recoil Reduction 1 Item Schematics ----------------- None Robot Schematics ------------------ None Fabricated ------------ Nothing Repaired ---------- Nothing Alien Tech Used ----------------- None Achievements -------------- None Challenges ------------ None Game ------ Seed SubatomicCooledNanoactuators Manual? 0 Play Time 00:10:35 Cumulative 34.0 hours Start 2025.08.07 @ 00:14:57 End 2025.08.07 @ 00:55:56 Sessions 1 Manual Loads 0 Difficulty Rogue Special Mode None Game No. 62 Rogue 62 Adventurer 0 Explorer 0 Win Type - Total 0 Types 0/0/0/0/0/0/0/0/0/0 Lore% 24 Gallery% 26 Achievement% 22 Wizard Run 0 Options --------- Layout 1 ASCII 0 Keyboard 0 Movement Numpad Keybinds 0 Fullscreen 1 Font 24/Smallcaps Map View 50x35 Zoom Use 0% Tactical HUD 0 Map Filters NONE Filters NONE Steam 1 RUN: 7647576d-cb5c-4e94-a253-471142e22f81